Workbook

Sheet Лист1
F1: Утверждаю
E2: Директор______________Шарифьянов В. Ф.
F3: 2022-09-08
C4: Меню
A5: для обучающихся 5-11 классов из ОВЗ
A6: 1 | B6: 2 | D6: 3 | F6: 4 | G6: 5 | H6: 6 | I6: 7
A7: Завтрак
A8: 469.02 | B8: Фрикадельки мясные с томатным соусом | D8: 65\40 | E8: 35.2 | F8: 3.00 | G8: 9.84 | H8: 7.96 | I8: 157.63
A9: 138.06 | B9: Картофельное пюре | D9: 200 | E9: 7.31 | F9: 9.3 | G9: 9.84 | H9: 8.0 | I9: 157.63
A10: 285 | B10: Кофейный напиток | D10: 200 | E10: 9.5 | F10: 10.88 | G10: 5.80 | H10: 0.10 | I10: 52.90
A11: 420.02 | B11: Хлеб пшеничный обогащенный витаминами для детского питания | D11: 50 | E11: 3 | F11: 3.2 | G11: 0.4 | H11: 22 | I11: 104
A12: 38.59 | B12: Яблоко | D12: 110 | E12: 12.2 | F12: 0.5 | G12: 0.5 | H12: 12.25 | I12: 58.75
A13: Итого за Завтрак | F13: =SUM(F8:F12) -> 26.88 | G13: =SUM(G8:G12) -> 26.38 | H13: =SUM(H8:H12) -> 50.31 | I13: =SUM(I8:I12) -> 530.91 | J13: 67.21
A14: Обед
A15: 2.10 | B15: Салат из белокочанной капусты с морковью | D15: 80 | E15: 11.05 | F15: 1.38 | G15: 3.08 | H15: 7.01 | I15: 62.12
A16: 67.32 | B16: Свекольник со сметаной | D16: 250/5 | E16: 3.8 | F16: 2.25 | G16: 4.93 | H16: 14.74 | I16: 112.75
A17: 423.18 | B17: Тефтели рыбные (филе минтая) с томатным соусом | D17: 80/40 | E17: 22.75 | F17: 7.86 | G17: 6.26 | H17: 8.12 | I17: 120.8
A18: 302.01 | B18: Каша гречневая вязкая с маслом | D18: 200/11 | E18: 14.77 | F18: 4.81 | G18: 8.49 | H18: 21.54 | I18: 181.60
A19: 305.11 | B19: компот из свежих плодов | D19: 200 | E19: 6 | H19: 23.5 | I19: 95
B20: печенье | D20: 57 | E20: 12.51
A21: 420.05 | B21: Хлеб пшеничный обогащенный витаминами для детского питания | D21: 60 | E21: 3.27 | F21: 3.6 | G21: 0.45 | H21: 24.75 | I21: 117
A22: Итого за Обед | F22: =SUM(F15:F21) -> 19.90 | G22: =SUM(G15:G21) -> 23.21 | H22: =SUM(H15:H21) -> 99.66 | I22: =SUM(I15:I21) -> 689.27
A23: Итого за день | E23: =SUM(E8:E22) -> 141.36 | F23: =F13+F22 -> 46.78 | G23: =G13+G22 -> 49.59 | H23: =H13+H22 -> 149.97 | I23: =I13+I22 -> 1220.18 | J23: 141.36
A24: Повар: ______________/Абзалова Н.К./
F25: Утверждаю
E26: Директор______________Шарифьянов В. Ф.
F27: 2022-09-08
C28: Меню
A29: для обучающихся 1-4 классов с ОВЗ
A30: № рец. | B30: Прием пищи, наименование блюда | D30: Масса порции | F30: Пищевые вещества (г) | I30: Энерге- тическая ценность (ккал)
E31: Цена | F31: Б | G31: Ж | H31: У
A32: 1 | B32: 2 | D32: 3 | F32: 4 | G32: 5 | H32: 6 | I32: 7
A33: Завтрак
A34: 469.02 | B34: Фрикадельки мясные с томатным соусом | D34: 70\40 | E34: 34.85 | F34: 3.00 | G34: 9.84 | H34: 7.96 | I34: 157.63
A35: 138.06 | B35: Картофельное пюре | D35: 160 | E35: 5.61 | F35: 9.3 | G35: 9.84 | H35: 8.0 | I35: 157.63
A36: 285 | B36: Кофейный напиток | D36: 200 | E36: 11.3 | F36: 0.06 | G36: 5.80 | H36: 0.10 | I36: 52.90
A37: 420.02 | B37: Хлеб пшеничный обогащенный витаминами для детского питания | D37: 50 | E37: 3 | F37: 3.2 | G37: 0.4 | H37: 22 | I37: 104
B38: печенье | D38: 20 | E38: 5 | F38: 0.5 | G38: 0.5 | H38: 12.25 | I38: 58.75
A39: Итого за Завтрак | F39: =SUM(F34:F38) -> 16.01 | G39: =SUM(G34:G38) -> 26.38 | H39: =SUM(H34:H38) -> 50.31 | I39: =SUM(I34:I38) -> 530.91 | J39: 59.76
A40: Обед
A41: 2.10 | B41: Салат из белокочанной капусты с морковью | D41: 60 | E41: 8.26 | F41: 1.38 | G41: 3.08 | H41: 7.01 | I41: 62.12
A42: 67.32 | B42: Свекольник со сметаной | D42: 250/5 | E42: 3.8 | F42: 2.25 | G42: 4.93 | H42: 14.74 | I42: 112.75
A43: 423.18 | B43: Тефтели рыбные (филе минтая) с томатным соусом | D43: 70/40 | E43: 19.91 | F43: 7.86 | G43: 6.26 | H43: 8.12 | I43: 120.8
A44: 302.01 | B44: Каша гречневая вязкая с маслом | D44: 180/10 | E44: 12.4 | F44: 4.81 | G44: 8.49 | H44: 21.54 | I44: 181.60
A45: 305.11 | B45: компот из свежих плодов | D45: 200 | E45: 6 | H45: 23.5 | I45: 95
B46: печенье | D46: 40 | E46: 8.8
A47: 420.05 | B47: Хлеб пшеничный обогащенный витаминами для детского питания | D47: 50 | E47: 2.73 | F47: 3.6 | G47: 0.45 | H47: 24.75 | I47: 117
A48: Итого за Обед | F48: =SUM(F41:F47) -> 19.90 | G48: =SUM(G41:G47) -> 23.21 | H48: =SUM(H41:H47) -> 99.66 | I48: =SUM(I41:I47) -> 689.27
A49: Итого за день | E49: =SUM(E34:E48) -> 121.66 | F49: =F39+F48 -> 35.91 | G49: =G39+G48 -> 49.59 | H49: =H39+H48 -> 149.97 | I49: =I39+I48 -> 1220.18 | J49: 121.66
A51: Повар: ______________/Абзалова Н.К./

Sheet Лист2
F1: Утверждаю
E2: Директор______________Шарифьянов В. Ф.
F3: 2022-09-08
C4: Меню
A5: для обучающихся 5-11 классов
A6: № рец. | B6: Прием пищи, наименование блюда | D6: Масса порции | F6: Пищевые вещества (г) | I6: Энерге- тическая ценность (ккал)
E7: Цена | F7: Б | G7: Ж | H7: У
A8: 1 | B8: 2 | D8: 3 | F8: 4 | G8: 5 | H8: 6 | I8: 7
A9: Завтрак
A10: 469.02 | B10: Фрикадельки мясные с томатным соусом | D10: 65\40 | E10: 35.2 | F10: 3.00 | G10: 9.84 | H10: 7.96 | I10: 157.63
A11: 138.06 | B11: Картофельное пюре | D11: 200 | E11: 7.31 | F11: 9.3 | G11: 9.84 | H11: 8.0 | I11: 157.63
A12: 285 | B12: Кофейный напиток | D12: 200 | E12: 9.5 | F12: 10.88 | G12: 5.80 | H12: 0.10 | I12: 52.90
A13: 420.02 | B13: Хлеб пшеничный обогащенный витаминами для детского питания | D13: 50 | E13: 3 | F13: 3.2 | G13: 0.4 | H13: 22 | I13: 104
A14: 38.59 | B14: Яблоко | D14: 110 | E14: 12.2 | F14: 0.5 | G14: 0.5 | H14: 12.25 | I14: 58.75
A15: Итого за Завтрак | E15: =SUM(E10:E14) -> 67.21 | F15: =SUM(F10:F14) -> 26.88 | G15: =SUM(G10:G14) -> 26.38 | H15: =SUM(H10:H14) -> 50.31 | I15: =SUM(I10:I14) -> 530.91 | J15: 67.21
A17: Повар: ______________/Абзалова Н.К./
F18: Утверждаю
E19: Директор______________Шарифьянов В. Ф.
F20: 2022-09-08
C21: Меню
A22: для обучающихся 1-4 классов
A23: № рец. | B23: Прием пищи, наименование блюда | D23: Масса порции | F23: Пищевые вещества (г) | I23: Энерге- тическая ценность (ккал)
E24: Цена | F24: Б | G24: Ж | H24: У
A25: 1 | B25: 2 | D25: 3 | F25: 4 | G25: 5 | H25: 6 | I25: 7
A26: Завтрак
A27: 469.02 | B27: Фрикадельки мясные с томатным соусом | D27: 70\40 | E27: 34.85 | F27: 3.00 | G27: 9.84 | H27: 7.96 | I27: 157.63
A28: 138.06 | B28: Картофельное пюре | D28: 160 | E28: 5.61 | F28: 9.3 | G28: 9.84 | H28: 8.0 | I28: 157.63
A29: 285 | B29: Кофейный напиток | D29: 200 | E29: 11.3 | F29: 0.06 | G29: 5.80 | H29: 0.10 | I29: 52.90
A30: 420.02 | B30: Хлеб пшеничный обогащенный витаминами для детского питания | D30: 50 | E30: 3 | F30: 3.2 | G30: 0.4 | H30: 22 | I30: 104
B31: печенье | D31: 20 | E31: 5 | F31: 0.5 | G31: 0.5 | H31: 12.25 | I31: 58.75
A32: Итого за Завтрак | E32: =SUM(E27:E31) -> 59.76 | F32: =SUM(F27:F31) -> 16.01 | G32: =SUM(G27:G31) -> 26.38 | H32: =SUM(H27:H31) -> 50.31 | I32: =SUM(I27:I31) -> 530.91 | J32: 59.76
A35: Повар: ______________/Абзалова Н.К./
